bitfinex/quotes_ETHUSD_20240715
["timestamp","ask_amount","ask_price","bid_price","bid_amount"]
[1721081194127,1.90071065,3437.5,3437.0,19.93]
[1721081194430,1.52426841,3437.2,3437.0,19.93]
[1721081194638,1.21942183,3437.1,3437.0,19.93]
[1721081195315,1.52426841,3437.2,3437.0,19.93]
[1721081195640,1.59563206,3437.1,3437.0,19.93]
[1721081195850,2.9092,3437.4,3437.0,19.93]
[1721081196135,0.07135088,3437.1,3437.0,19.93]
[1721081196338,5.36752293,3437.4,3437.0,19.93]
[1721081196339,1.82912046,3437.3,3437.0,19.93]
[1721081196544,0.07135088,3437.1,3437.0,19.93]
[1721081196741,1.52424344,3437.1,3437.0,19.93]
[1721081197037,0.07135088,3437.1,3437.0,19.93]
[1721081197245,1.82912046,3437.5,3437.0,19.93]
[1721081197456,0.07135088,3437.1,3437.0,19.93]
[1721081197748,1.21931033,3437.1,3437.0,28.66638562]
[1721081197906,1.21931033,3437.2,3437.1,2.90942]
[1721081198419,1.5241906,3437.4,3437.1,2.90942]
[1721081198420,1.21931033,3437.4,3437.2,2.90934]
[1721081198620,1.21931033,3437.5,3437.2,2.90934]
[1721081198838,1.21931033,3437.6,3437.3,2.751]
[1721081199062,1.21931033,3437.6,3437.3,5.66026]
[1721081199231,1.21931033,3437.6,3437.5,2.90909]
[1721081199565,1.21877189,3437.6,3437.5,2.90909]
[1721081199723,1.52376291,3437.6,3437.5,2.90909]
[1721081199922,1.52376291,3437.7,3437.6,2.909]
[1721081200142,0.30458756,3438.1,3437.6,2.909]
[1721081200472,1.52344941,3437.7,3437.6,2.909]
[1721081201159,1.52344941,3437.8,3437.7,2.90892]
[1721081201337,1.59496126,3437.8,3437.6,2.909]
[1721081201535,1.59496126,3437.8,3437.7,2.90892]
[1721081202355,0.07151185,3437.8,3437.7,2.90892]
[1721081202668,1.5227788,3437.8,3437.7,2.90892]
[1721081202963,1.59429085,3437.8,3437.7,2.90892]
[1721081203470,0.07151185,3437.8,3437.6,19.93]
[1721081203764,1.52266742,3437.7,3437.6,19.93]
[1721081203973,1.59421303,3437.7,3437.6,19.93]
[1721081204328,0.07154561,3437.7,3437.6,19.93]
[1721081204765,4.7361248,3437.9,3437.6,19.93]
[1721081204964,1.8273348,3437.8,3437.6,19.93]
[1721081205459,0.07154364,3437.7,3437.6,19.93]
[1721081205661,1.82718553,3437.9,3437.6,19.93]
[1721081205872,1.59414018,3437.7,3437.6,19.93]
[1721081206058,1.52259654,3437.7,3437.6,19.93]
[1721081206267,0.07152495,3437.7,3437.6,19.93]
[1721081206463,1.52259654,3437.8,3437.6,19.93]
[1721081206663,0.07152495,3437.7,3437.6,19.93]
[1721081206982,1.52259654,3437.8,3437.6,19.93]
[1721081207144,0.07152101,3437.7,3437.6,19.93]
[1721081207343,1.52259654,3437.8,3437.6,19.93]
[1721081207574,0.07152101,3437.7,3437.6,19.93]
[1721081207876,1.52259654,3437.7,3437.6,19.93]
[1721081208034,1.59411755,3437.7,3437.6,19.93]
[1721081208740,0.07152101,3437.7,3437.6,19.93]
[1721081208971,1.52271098,3437.7,3437.5,22.2562]
[1721081209172,1.21816817,3437.6,3437.5,22.2562]
[1721081209363,1.21824945,3437.6,3437.5,22.2562]
[1721081209677,1.52271098,3437.7,3437.5,22.2562]
[1721081209875,0.07150364,3437.6,3437.5,22.2562]
[1721081210178,1.21824787,3437.6,3437.5,22.2562]
[1721081210678,1.21827261,3437.6,3437.5,22.2562]
[1721081211239,1.21827261,3437.6,3437.5,30.881833]
[1721081211461,1.21827261,3437.7,3437.6,2.909]
[1721081211671,1.21827261,3437.7,3437.6,5.818]
[1721081214370,1.52275381,3437.8,3437.5,19.93]
[1721081214571,1.21835972,3437.6,3437.5,19.93]
[1721081214893,1.21835972,3437.7,3437.5,2.90909]
[1721081215104,1.21835972,3437.6,3437.5,2.90909]
[1721081215778,0.35519049,3438.4,3437.7,2.90888]
[1721081215982,1.5230243,3437.8,3437.7,2.90888]
[1721081217069,1.5230243,3437.8,3437.7,5.8178]
[1721081218303,1.5230243,3437.9,3437.8,2.90883]
[1721081218449,0.30417242,3438.3,3437.9,2.90868]
[1721081218653,2.13252221,3438.3,3437.9,2.90868]
[1721081219273,1.82834979,3438.2,3437.9,2.90868]
[1721081220751,1.82834979,3438.1,3437.9,2.90868]
[1721081220950,1.82885615,3438.1,3437.9,2.90868]
[1721081221257,1.82885615,3438.1,3437.8,19.93]
[1721081221605,1.82885615,3438.0,3437.8,19.93]
[1721081221772,1.9004697,3438.0,3437.8,19.93]
[1721081222703,0.07161355,3438.0,3437.9,2.90875]
[1721081223094,1.82885615,3438.2,3437.9,2.90875]
[1721081223291,0.07156117,3438.0,3437.9,2.90875]
[1721081223466,0.30417242,3438.3,3438.1,2.90858]
[1721081223789,0.30446448,3438.4,3438.3,2.90841]
[1721081223959,0.30446448,3438.4,3438.3,8.09192]
[1721081224159,0.30446448,3438.4,3438.3,10.84292]
[1721081224389,1.21896335,3438.8,3438.7,5.81614]
[1721081224576,1.82899251,3439.4,3438.8,8.09108]
[1721081224577,0.30435397,3438.9,3438.8,8.09108]
[1721081224779,1.21896335,3439.3,3439.1,2.90773]
[1721081224976,1.21896335,3439.3,3439.2,2.90765]
[1721081225207,1.52416042,3439.5,3439.3,2.90756]
[1721081225208,1.21896335,3439.4,3439.3,2.90756]
[1721081226207,1.21896335,3439.5,3439.3,2.90756]
[1721081227199,1.21896335,3439.5,3439.4,2.90748]
[1721081227409,1.21896335,3439.6,3439.5,2.90739]
[1721081227580,1.21896335,3439.6,3439.5,5.27969]
[1721081227776,1.21658974,3439.6,3439.5,5.27969]
[1721081228184,1.21658974,3439.7,3439.5,2.90739]
[1721081228891,0.06957803,3439.6,3439.5,2.90739]
[1721081229227,1.21658974,3439.8,3439.5,2.90739]
[1721081229511,0.0696761,3439.6,3439.5,2.90739]
[1721081229667,1.21658974,3439.8,3439.5,2.90739]
[1721081229868,0.0696761,3439.6,3439.5,2.90739]
[1721081230067,1.33496114,3439.9,3439.5,2.90739]
[1721081230316,1.33496114,3439.9,3439.8,5.81428]
[1721081230617,0.1183714,3439.9,3439.8,13.84472]
[1721081232678,0.1183714,3439.9,3439.8,16.75186]
[1721081233116,0.30420766,3441.4,3441.2,2.90588]
[1721081233323,0.30420766,3441.4,3441.2,2.90592]
[1721081233993,2.90516,3442.2,3441.2,2.90592]
[1721081234190,0.30415932,3441.9,3441.2,2.90592]
[1721081234394,0.30415932,3441.9,3441.0,13.05712]
[1721081234395,0.06842683,3441.8,3441.3,2.90586]
[1721081234615,0.30415932,3441.9,3441.1,2.906]
[1721081234775,0.06846769,3441.7,3441.2,0.05810787]
[1721081235104,0.30415932,3441.9,3441.7,2.90554]
[1721081235433,2.3795,3442.9,3442.0,2.90526]
[1721081235434,5.28409,3442.9,3442.0,2.90526]
[1721081235615,0.30386835,3442.8,3442.1,0.05809419]
[1721081235780,0.30386835,3442.8,3442.4,2.90493]
[1721081236131,0.1439636,3443.3,3442.6,2.90474]
[1721081236132,0.06858887,3442.7,3442.6,2.90474]
[1721081236530,0.1439636,3443.3,3442.8,2.90453]
[1721081236694,0.1439636,3443.3,3442.5,2.3723]
[1721081236695,0.1439636,3443.3,3442.5,5.27715]
[1721081236893,0.06873743,3443.2,3442.6,2.90477]
[1721081237341,0.06873743,3443.2,3442.7,2.90465]
[1721081237639,0.1439636,3443.3,3442.7,2.90465]
[1721081237807,0.1439636,3443.3,3442.8,2.90455]
[1721081238428,0.1439636,3443.3,3442.7,5.65565]
[1721081238837,3.0481736,3443.3,3442.4,7.4]
[1721081239020,3.70417911,3443.3,3442.4,10.30493]
[1721081239541,3.70417911,3443.3,3442.4,7.4]
[1721081239761,2.90437,3443.1,3442.4,7.4]
[1721081239901,0.06884258,3443.2,3441.8,7.4]
[1721081239902,2.3795,3443.0,3441.8,7.4]
[1721081240222,2.90516,3442.2,3441.8,7.4]
[1721081240428,2.90476,3442.7,3441.4,12.37]
[1721081240623,0.06864254,3442.1,3441.7,2.90547]
[1721081240937,2.90478,3442.6,3441.6,2.90561]
[1721081241145,2.3795,3442.5,3441.4,12.37]
[1721081241443,2.3795,3442.5,3441.3,7.4]
[1721081241444,5.825,3442.3,3441.3,7.4]
[1721081241594,2.90579,3441.4,3441.3,7.4]
[1721081241800,2.90579,3441.4,3440.5,10.30653]
[1721081242301,2.3795,3442.5,3440.9,2.90614]
[1721081242639,2.90545,3441.8,3441.0,7.4]
[1721081242941,2.90521,3442.1,3441.0,7.4]
[1721081242942,2.90538,3441.9,3441.0,7.4]
[1721081243108,0.06851521,3441.7,3441.0,7.4]
[1721081243302,2.90498,3442.4,3441.0,7.4]
[1721081243631,2.90498,3442.4,3441.3,2.9058]
[1721081243839,2.97367396,3442.3,3441.3,2.9058]
[1721081244042,0.06861396,3442.3,3441.0,7.4]
[1721081244349,2.9053,3442.0,3441.1,2.90597]
[1721081244554,0.06861396,3442.3,3441.1,2.90597]
[1721081244555,2.90539,3441.9,3441.1,2.90597]
[1721081244759,2.90551,3441.8,3441.0,7.4]
[1721081244931,2.90569,3441.6,3441.0,7.4]
[1721081245256,0.06848657,3441.5,3441.0,7.4]
[1721081245921,2.90563,3441.6,3441.0,7.4]
[1721081246122,2.90589,3441.3,3441.0,7.4]
[1721081246454,0.06814278,3441.2,3441.0,7.4]
[1721081246652,0.30396537,3441.5,3441.0,7.4]
[1721081246963,0.06810162,3441.1,3441.0,7.4]
[1721081247150,3.20967537,3441.5,3440.7,2.90633]
[1721081247347,0.06810162,3441.1,3440.7,2.90633]
[1721081247519,3.20967537,3441.5,3440.6,2.90645]
[1721081247868,2.90595,3441.3,3440.4,7.4]
[1721081248045,2.90597,3441.2,3440.4,7.4]
[1721081248915,2.90627,3440.9,3440.4,7.4]
[1721081249442,2.90651,3440.6,3440.4,7.4]
[1721081249820,2.97470456,3440.5,3440.4,7.4]
[1721081250015,0.06815456,3440.5,3440.4,7.4]
[1721081250369,2.90622,3440.9,3440.4,7.4]
[1721081250662,3.37140272,3441.8,3440.4,7.4]
[1721081250663,0.06822721,3440.8,3440.4,7.4]
[1721081250846,2.90615,3441.0,3440.4,7.4]
[1721081251040,0.06818422,3440.7,3440.4,7.4]
[1721081251368,2.90598,3441.2,3440.4,7.4]
[1721081251767,3.20998506,3441.4,3440.5,2.90654]
[1721081251768,0.06822972,3441.1,3440.5,2.90654]
[1721081252178,2.90589,3441.3,3440.5,2.90654]
[1721081252673,2.90596,3441.2,3440.5,2.90654]
[1721081253626,0.30417506,3441.4,3440.6,2.90645]
[1721081253827,0.06820043,3441.1,3440.6,2.90645]
[1721081254033,0.30417506,3441.4,3440.7,1.67115557]
[1721081254233,0.06817622,3441.0,3440.7,1.61303556]
[1721081254470,3.20996506,3441.4,3440.7,1.61303556]
[1721081254768,0.06815201,3440.9,3440.7,1.61303556]
[1721081254953,0.30417506,3441.4,3441.1,2.90602]
[1721081255157,0.30417506,3441.4,3441.1,0.290602]
[1721081255357,0.0681781,3441.3,3441.2,5.81192]
[1721081255531,2.90495,3442.4,3441.6,2.90557]
[1721081255732,0.30391272,3441.9,3441.6,2.90557]
[1721081255968,2.90495,3442.4,3441.6,2.90557]
[1721081256265,0.30390665,3441.9,3441.7,2.90553]
[1721081256432,0.30411534,3442.5,3441.7,5.47966]
[1721081256633,0.30389625,3442.2,3441.7,2.90553]
[1721081257068,0.30389625,3442.2,3441.5,19.93]
[1721081257069,0.30389625,3442.2,3441.6,2.90562]
[1721081257601,0.30389625,3442.2,3441.7,2.4994]
[1721081257872,0.30411534,3442.5,3442.3,2.90497]
[1721081258231,0.30411534,3442.5,3442.2,2.90508]
[1721081258431,0.30411534,3442.5,3442.3,2.90501]
[1721081259229,0.30411534,3442.5,3442.4,3.485971]
[1721081259567,0.3038584,3443.0,3442.5,2.9048]
[1721081259870,0.06759208,3442.9,3442.5,2.9048]
[1721081260971,0.06759208,3442.9,3442.5,2.90375574]
[1721081261639,0.06759208,3442.9,3441.9,19.93]
[1721081261843,3.2083184,3443.0,3442.2,2.9051]
[1721081262040,3.2083184,3443.0,3442.2,2.90503]
[1721081262041,0.06776864,3442.8,3442.2,2.90503]
[1721081262246,0.64166306,3442.9,3442.0,2.90527]
[1721081262557,0.64166306,3442.9,3442.1,2.90519]
[1721081263150,2.90483,3442.6,3442.0,19.93]
[1721081263748,2.90495,3442.4,3441.8,19.93]
[1721081263995,1.130987,3442.3,3441.8,19.93]
[1721081264196,2.90524,3442.1,3441.8,19.93]
[1721081264359,3.52284478,3442.3,3441.8,19.93]
[1721081264360,0.06780478,3442.3,3441.8,19.93]
[1721081264693,2.90499,3442.4,3441.8,19.93]
[1721081264851,0.06773812,3442.2,3441.8,19.93]
[1721081265057,2.90499,3442.4,3441.8,19.93]
[1721081265253,0.06771392,3442.1,3441.8,19.93]
[1721081265472,0.580986,3442.3,3441.8,19.93]
[1721081265676,0.06768972,3442.0,3441.8,19.93]
[1721081265960,2.90487,3442.5,3441.8,19.93]
[1721081266176,3.1439636,3443.3,3442.1,2.90518]
[1721081266378,0.06771716,3442.4,3442.1,2.90518]
[1721081266565,2.90462,3442.8,3442.1,2.90518]
[1721081266882,0.06778775,3442.7,3441.8,22.83544]
[1721081267580,0.06778775,3442.7,3441.8,19.93]
[1721081267898,0.3038584,3443.0,3441.9,2.91736562]
[1721081268761,3.2083384,3443.0,3442.2,2.90507]
[1721081268962,0.3038584,3443.0,3442.0,2.2658]
[1721081269191,0.06775067,3442.9,3442.5,2.90481]
[1721081269494,0.3038584,3443.0,3442.6,2.90476]
[1721081269695,0.06776352,3442.8,3442.6,2.90476]
[1721081269879,0.3038584,3443.0,3442.6,2.90476]
[1721081270611,0.06778771,3442.9,3442.6,2.90476]
[1721081271731,0.30403221,3443.2,3442.6,2.90476]
[1721081273101,0.30403221,3443.2,3443.1,5.8087]
[1721081273322,0.1439636,3443.3,3443.2,2.90427]
[1721081274642,0.1439636,3443.3,3442.8,2.90455]
[1721081274937,0.1439636,3443.3,3443.0,2.9044]
[1721081276397,0.06624962,3443.2,3443.0,2.9044]
[1721081276595,0.06624962,3443.2,3442.5,2.90482]
[1721081277391,0.1439636,3443.3,3442.5,2.90482]
[1721081277892,3.0481536,3443.3,3442.5,2.90482]
[1721081278098,0.06631028,3443.2,3442.5,2.90482]
[1721081278309,3.0481536,3443.3,3442.5,2.90482]
[1721081278504,0.06631028,3443.2,3442.6,2.90475]
[1721081278713,0.1439636,3443.3,3442.7,2.90467]
[1721081278905,0.1439636,3443.3,3442.6,2.14951186]
[1721081279111,0.1439636,3443.3,3443.0,2.90443]
[1721081279306,0.1439636,3443.3,3442.6,2.14951186]
[1721081279307,0.1439636,3443.3,3442.8,2.2589]
[1721081279508,0.1439636,3443.3,3443.2,5.80854]
[1721081279833,0.1439636,3443.3,3443.2,9.68563808]
[1721081280448,0.1439636,3443.3,3443.2,5.90427]
[1721081281334,0.1439636,3443.3,3442.8,2.2589]
[1721081281495,0.1439636,3443.3,3442.9,2.90452]
[1721081282105,0.1439636,3443.3,3443.2,2.90427]
[1721081282493,0.1439636,3443.3,3443.1,2.90435]
[1721081282951,0.1439636,3443.3,3443.2,2.90427]
[1721081283144,0.1439636,3443.3,3442.8,2.2589]
[1721081283346,0.1439636,3443.3,3442.8,2.90454]
[1721081283705,0.1439636,3443.3,3442.8,19.93]
[1721081284024,0.1439636,3443.3,3442.8,22.8346]
[1721081287451,0.1439636,3443.3,3443.2,2.90427]
[1721081289330,0.1439636,3443.3,3443.2,5.80854]
[1721081289527,0.1439636,3443.3,3443.2,2.90427]
[1721081289743,0.1439636,3443.3,3443.2,5.80854]
[1721081291437,0.1439636,3443.3,3443.2,5.86660831]
[1721081291738,0.1439636,3443.3,3443.2,14.63017562]
[1721081292762,0.1439636,3443.3,3443.2,11.72590562]
[1721081293565,0.1439636,3443.3,3443.2,5.90427]
[1721081295026,0.1439636,3443.3,3443.2,2.90427]
[1721081295282,0.1439636,3443.3,3443.0,19.93]
[1721081295637,2.314,3443.2,3442.2,19.93]
[1721081295878,2.90453,3442.9,3442.2,19.93]
[1721081296086,0.79579636,3443.1,3442.2,19.93]
[1721081296087,2.9047,3442.7,3442.2,19.93]
[1721081296284,2.9047,3442.7,3441.9,2.90534]
[1721081296285,2.90497,3442.4,3442.0,19.93]
[1721081296488,2.90511,3442.2,3441.7,19.93]
[1721081296870,3.36047457,3442.6,3441.7,19.93]
[1721081297186,0.06385982,3442.1,3441.9,2.90534]
[1721081297356,3.36046457,3442.6,3441.7,19.93]
[1721081297551,2.90501,3442.4,3441.7,19.93]
[1721081297759,0.06397355,3442.3,3441.7,19.93]
[1721081298470,2.90496,3442.4,3441.7,19.93]
[1721081298676,0.06391086,3442.2,3441.7,19.93]
[1721081298888,0.06393505,3442.3,3441.7,19.93]
[1721081299205,0.06390395,3442.2,3441.7,19.93]
[1721081299552,2.90513,3442.2,3441.7,19.93]
[1721081299773,2.96908876,3442.1,3441.7,19.93]
[1721081300452,0.30388754,3442.0,3441.7,19.93]
[1721081301287,0.05066668,3442.2,3441.9,2.90537]
[1721081301507,0.05066668,3442.2,3441.8,19.93]
[1721081301866,0.0637228,3442.1,3441.8,19.93]
[1721081302391,0.0637583,3442.0,3441.8,19.93]
[1721081303002,2.95579668,3442.2,3441.8,19.93]
[1721081303003,2.90537,3441.9,3441.8,19.93]
[1721081303167,2.96910159,3441.9,3441.8,19.93]
[1721081303774,0.06373159,3441.9,3441.8,19.93]
[1721081304357,1.26420671,3442.2,3441.8,19.93]
[1721081304584,0.06378249,3442.1,3441.8,19.93]
[1721081305194,0.05066668,3442.2,3441.8,19.93]
[1721081305609,0.06377999,3442.1,3441.8,19.93]
[1721081305767,0.06377999,3442.1,3441.9,2.90536]
[1721081305963,0.30386845,3442.5,3441.9,2.90536]
[1721081306190,0.06385507,3442.4,3441.8,19.93]
[1721081306602,0.55802888,3442.4,3441.8,19.93]
[1721081307124,0.55802888,3442.4,3441.9,19.93]
[1721081307669,0.06385507,3442.4,3441.9,19.93]
[1721081307899,0.06385507,3442.4,3441.9,22.83535]
[1721081308430,0.06385507,3442.4,3441.9,19.93]
[1721081308741,1.2773951,3442.4,3441.9,19.93]
[1721081309239,1.21354003,3442.3,3441.9,19.93]
[1721081309547,2.96892418,3442.2,3441.9,19.93]
[1721081309900,4.18246421,3442.2,3441.9,19.93]
[1721081310122,1.27734421,3442.2,3441.9,19.93]
[1721081310333,0.06380418,3442.2,3441.9,19.93]
[1721081310529,1.21354003,3442.4,3441.9,19.93]
[1721081310939,0.06383824,3442.3,3441.9,19.93]
[1721081311148,4.18243827,3442.3,3441.9,19.93]
[1721081311523,1.21354003,3442.2,3441.9,19.93]
[1721081311703,0.06377605,3442.1,3441.9,19.93]
[1721081311944,4.11860003,3442.3,3441.9,19.93]
[1721081312242,0.30387986,3442.1,3441.9,19.93]
[1721081312617,0.06375436,3442.0,3441.9,19.93]
[1721081316743,0.06375436,3442.0,3441.9,24.80428569]
[1721081317107,0.30405451,3442.5,3441.9,24.80428569]
[1721081317318,0.30405451,3442.5,3442.0,2.90527]
[1721081317645,1.9730814,3442.6,3442.3,2.90503]
[1721081317646,0.06386594,3442.4,3442.3,2.90503]
[1721081317857,0.06386594,3442.4,3442.2,2.90506]
[1721081317858,0.06386594,3442.4,3442.1,2.90515]
[1721081318153,0.06386594,3442.4,3442.0,2.90526]
[1721081318154,0.75954137,3442.6,3442.2,2.90505]
[1721081318441,0.06382394,3442.5,3442.1,2.90514]
[1721081319042,0.06382394,3442.5,3442.2,2.90511]
[1721081319250,0.06382394,3442.5,3442.4,2.90495]
[1721081319549,0.06382394,3442.5,3442.1,0.50524312]
[1721081319550,0.06382394,3442.5,3442.3,2.90502]
[1721081319748,0.06382394,3442.5,3442.4,2.90495]
[1721081321826,0.7595155,3442.6,3442.4,2.90495]
[1721081322619,0.30383093,3442.6,3442.4,2.90495]
[1721081323254,0.30383093,3442.6,3442.1,0.50524312]
[1721081323451,0.30383093,3442.6,3442.2,2.04352431]
[1721081323636,0.30383093,3442.6,3442.5,2.90486]
[1721081323849,0.30403577,3443.1,3442.6,2.9047]
[1721081324364,1.21354003,3443.0,3442.6,2.9047]
[1721081324564,0.06182158,3442.9,3442.6,2.9047]
[1721081324776,0.30403577,3443.1,3442.6,2.9047]
[1721081324951,0.06184577,3443.0,3442.6,2.9047]
[1721081325127,1.2753858,3443.0,3442.6,2.9047]
[1721081325328,1.2753858,3443.0,3442.7,2.90469]
[1721081325529,0.06184577,3443.0,3442.9,2.90452]
[1721081325775,0.1439636,3443.3,3443.1,2.90434]
[1721081325971,0.0618197,3443.2,3443.1,2.90434]
[1721081326187,0.1439636,3443.3,3443.1,2.90434]
[1721081326459,0.06183277,3443.2,3443.1,2.90434]
[1721081326891,0.1439636,3443.3,3443.1,2.90434]
[1721081327091,0.06183277,3443.2,3443.1,2.90434]
[1721081327246,0.06183277,3443.2,3442.9,2.90452]
[1721081327447,0.1439636,3443.3,3443.0,2.90439]
[1721081327646,0.1439636,3443.3,3443.1,2.90435]
[1721081330284,0.1439636,3443.3,3443.2,2.90427]
[1721081330668,0.1439636,3443.3,3443.2,5.80854]
[1721081331058,0.1439636,3443.3,3443.2,8.10194]
[1721081333790,0.1439636,3443.3,3443.2,30.93621]
[1721081335365,0.1439636,3443.3,3443.2,33.93621]
[1721081335611,0.1439636,3443.3,3443.2,36.85357562]
[1721081336922,0.1439636,3443.3,3443.2,39.75784562]
[1721081337699,0.1439636,3443.3,3443.2,36.85357562]
[1721081341438,0.1439636,3443.3,3443.2,39.75784562]
[1721081341759,0.1439636,3443.3,3443.2,36.85357562]
[1721081341907,0.1439636,3443.3,3443.2,39.75784562]
[1721081342258,0.30368135,3444.6,3444.5,5.80634]
[1721081342406,3.20683135,3444.6,3443.8,2.90375]
[1721081342712,2.96570467,3444.5,3443.7,2.90384]
[1721081343261,2.96570467,3444.5,3443.3,2.90416]
[1721081343469,2.90342,3444.3,3443.3,2.90416]
[1721081343764,0.06258997,3444.2,3443.1,0.580885]
[1721081343939,2.90327,3444.4,3443.6,2.90386]
[1721081344124,2.3193,3444.3,3443.0,2.90442]
[1721081344320,3.59469823,3444.3,3443.0,2.90442]
[1721081344523,2.90353,3444.1,3443.1,2.90429]
[1721081344722,0.61252487,3444.0,3443.2,2.90427]
[1721081345144,0.61252487,3444.0,3443.3,2.90415]
[1721081345354,3.51612487,3444.0,3442.7,2.2885]
[1721081345758,3.51612487,3444.0,3443.2,2.90421]
[1721081345956,3.51612487,3444.0,3442.7,2.2885]
[1721081345957,0.06252487,3444.0,3443.4,2.90408]
[1721081346271,0.30372452,3443.9,3443.4,2.90405]
[1721081346571,0.36616706,3443.9,3443.5,2.90401]
[1721081346970,0.36616706,3443.9,3442.8,5.32778]
[1721081346971,0.36616706,3443.9,3443.0,2.90441]
[1721081347180,0.36616706,3443.9,3443.0,3.737171]
[1721081347349,0.36616706,3443.9,3443.3,2.90411]
[1721081347527,0.36616706,3443.9,3443.1,2.90434]
[1721081347733,0.36616706,3443.9,3443.6,2.90388]
[1721081347978,0.36616706,3443.9,3443.4,2.90409]
[1721081348168,0.36616706,3443.9,3443.2,2.90426]
[1721081348649,0.36616706,3443.9,3443.2,22.83426]
[1721081349176,2.3193,3443.8,3443.3,19.93]
[1721081349364,0.06223993,3443.7,3443.3,19.93]
[1721081349560,2.3193,3443.8,3443.3,22.83416]
[1721081349744,0.06241314,3443.7,3443.3,22.83416]
[1721081349955,2.3193,3443.8,3443.3,24.89875799]
[1721081350163,0.06241314,3443.7,3443.3,24.89875799]
[1721081350361,2.3193,3443.8,3443.3,24.89875799]
[1721081350563,0.06241314,3443.7,3443.3,22.83416]
[1721081350738,2.3193,3443.8,3443.3,19.93]
[1721081351092,2.90395,3443.6,3443.3,19.93]
[1721081351297,4.11599388,3443.4,3443.3,19.93]
[1721081351436,7.87330914,3443.4,3443.3,19.93]
[1721081351798,7.77417634,3443.4,3443.3,19.93]
[1721081351933,9.29014902,3443.4,3443.3,19.93]
[1721081352251,4.87007634,3443.4,3443.3,19.93]
[1721081352446,9.29017718,3443.4,3443.3,19.93]
[1721081352834,4.87007634,3443.4,3443.3,19.93]
[1721081353045,6.38616712,3443.4,3443.3,19.93]
[1721081353349,9.29026712,3443.4,3443.3,19.93]
[1721081354142,7.77417634,3443.4,3443.3,19.93]
[1721081355156,3.51638437,3443.4,3443.3,19.93]
[1721081356247,6.72430634,3443.4,3443.3,19.93]
[1721081357349,9.44974624,3443.4,3443.3,19.93]
[1721081357550,7.63001143,3443.4,3443.3,19.93]
[1721081357951,7.93401213,3443.4,3443.3,19.93]
[1721081358362,10.01228677,3443.4,3443.3,19.93]
[1721081358965,11.83306698,3443.4,3443.3,19.93]
[1721081359169,10.01226681,3443.4,3443.3,19.93]
[1721081359701,11.83305379,3443.4,3443.3,19.93]
[1721081360055,10.01226681,3443.4,3443.3,19.93]
[1721081360260,11.83305379,3443.4,3443.3,19.93]
[1721081360700,9.7547611,3443.4,3443.3,19.93]
[1721081360868,1.22010704,3443.4,3443.3,19.93]
[1721081361059,3.57420704,3443.4,3443.3,19.93]
[1721081361695,5.09194928,3443.4,3443.3,19.93]
[1721081361911,3.57420704,3443.4,3443.3,19.93]
[1721081362264,4.12420704,3443.4,3443.3,19.93]
[1721081363002,4.1748552,3443.4,3443.3,19.93]
[1721081363176,2.78871275,3443.4,3443.3,19.93]
[1721081363787,1.2707552,3443.4,3443.3,19.93]
[1721081363978,2.78871275,3443.4,3443.3,19.93]
[1721081364180,2.23871275,3443.4,3443.3,19.93]
[1721081364379,2.23871275,3443.4,3443.3,21.923]
[1721081364380,1.93520092,3443.4,3443.3,21.923]
[1721081364583,0.7207552,3443.4,3443.3,21.923]
[1721081364915,0.4167545,3443.4,3443.3,21.923]
[1721081365271,1.56891585,3443.4,3443.3,19.93]
[1721081365469,0.41548114,3443.4,3443.3,19.93]
[1721081365674,1.62992686,3443.4,3443.3,19.93]
[1721081366010,0.41548114,3443.4,3443.3,19.93]
[1721081366627,0.41548114,3443.4,3443.0,22.83437]
[1721081366821,0.35447013,3443.4,3443.1,2.91736562]
[1721081367273,1.56891585,3443.4,3443.1,2.91736562]
[1721081367471,0.06098613,3443.3,3443.1,2.91736562]
[1721081368011,1.56891585,3443.4,3443.1,2.91736562]
[1721081368210,0.06098613,3443.3,3443.1,2.91736562]
[1721081368417,1.56891585,3443.4,3443.2,2.91736562]
[1721081368627,0.06098613,3443.3,3443.2,2.91736562]
[1721081368775,1.56891585,3443.4,3443.2,2.91736562]
[1721081369181,0.06098613,3443.3,3443.2,2.91736562]
[1721081369421,1.56891585,3443.4,3443.2,2.91736562]
[1721081369593,0.06098613,3443.3,3443.2,2.91736562]
[1721081369794,1.56891585,3443.4,3443.2,2.91736562]
[1721081369995,0.06098613,3443.3,3443.2,2.91736562]
[1721081370213,1.56891585,3443.4,3443.2,2.91736562]
[1721081370416,0.06098613,3443.3,3443.0,19.93]
[1721081370617,1.21522353,3443.2,3443.0,19.93]
[1721081370824,0.06101048,3443.1,3443.0,19.93]
[1721081371194,1.21517415,3443.2,3443.0,19.93]
[1721081371400,1.87343781,3443.4,3443.0,19.93]
[1721081371401,1.21517415,3443.3,3443.0,19.93]
[1721081371620,1.27615657,3443.2,3443.0,19.93]
[1721081371814,1.27615657,3443.2,3443.0,21.79519808]
[1721081372183,1.21517415,3443.2,3443.0,21.79519808]
[1721081372612,1.21517415,3443.2,3443.1,19.93]
[1721081373020,1.57994024,3443.2,3443.1,19.93]
[1721081374086,0.06097256,3443.2,3443.1,19.93]
[1721081374287,1.27616697,3443.2,3443.1,22.39997981]
[1721081374534,1.21519441,3443.3,3443.1,22.39997981]
[1721081374743,0.06097476,3443.2,3443.1,22.39997981]
[1721081375024,1.21516902,3443.3,3443.1,22.39997981]
[1721081375242,0.06097476,3443.2,3443.1,19.93]
[1721081375398,1.27614378,3443.2,3443.1,19.93]
[1721081375819,0.06097476,3443.2,3443.1,19.93]
[1721081376016,1.21516902,3443.3,3443.1,19.93]
[1721081376334,0.06052868,3443.2,3443.1,19.93]
[1721081376542,0.06052868,3443.2,3443.1,20.92183363]
[1721081376760,1.21516902,3443.3,3443.1,20.92183363]
[1721081376907,0.06052572,3443.2,3443.1,23.82618363]
[1721081377421,0.35447013,3443.4,3443.1,23.82618363]
[1721081377627,0.35447013,3443.4,3443.2,2.67306136]